Cogmind - Beta 13 @@@ ROGUE MODE // 2024.03.22 @ 20:18:01 Player: darki Result: Destroyed by G-67 Veteran with Field Laser Performance ------------- Evolutions (4) 2000 Regions Visited (6) 1200 Robots Destroyed (91) 455 Value Destroyed (3364) 3364 Prototype IDs (5) 100 Alien Tech Used (0) 0 Bonus (727) 727 TOTAL SCORE: 7846 Bonus ------- High Alert Combat Kills 227 Entered DSFs 500 Cogmind --------- Core Integrity 0/850 Matter 224/300 Energy 45/100 System Corruption 1% Temperature Cool (9) Movement Flying (40) Location -6/Factory Parts ------- > --- POWER (1) -------- (None) > --- PROPULSION (2) --- Biomechanical Wings > --- UTILITY (10) ----- (None) > --- WEAPON (2) ------- (None) > --- INVENTORY (5) ---- High-capacity Matter Pod (19) High-capacity Matter Pod (0) Guided EMP Blaster Peak State ------------ > --- POWER ------------ Angular Momentum Engine > --- PROPULSION ------- Armored Treads Armored Treads > --- UTILITY ---------- Large Storage Unit Gravity Neutralizer Active Sensor Suite Core Analyzer Armor Integrity Analyzer Weapon Cycler System Shield System Guard > --- WEAPON ----------- Gauss Cannon Gauss Cannon > --- INVENTORY -------- Micro Nuclear Core Light Treads Light Treads Light Treads Large Matter Pod High-capacity Matter Pod High-capacity Matter Pod Medium Laser Heavy Assault Rifle Gauss Rifle Gauss Cannon Gauss Cannon Shock Bomb Launcher Shock Bomb Launcher Rocket Launcher [Rating: 76] Favorites ----------- Power Ion Engine Engine Ion Engine Power Core Light Nuclear Core Propulsion Light Treads Treads Light Treads Leg Aluminum Leg Flight Unit Biomechanical Wings Utility Large Storage Unit Device Weapon Cycler Storage Large Storage Unit Processor Core Analyzer Hackware Hacking Suite Protection Light Armor Plating Weapon Gauss Rifle Energy Gun Medium Laser Ballistic Gun Gauss Rifle Ballistic Cannon Gauss Cannon Launcher Shock Bomb Launcher Build | -11 -10 -10 -8 -7 -7 -6 ------- Run | Yrd Mat Sub Mat Fac DSF Fac Slots Evolved 8 | . . . 4 2 . 2 Power . | . . . . . . . Propulsion . | . . . . . . . Utility 8 | . . . 4 2 . 2 Weapon . | . . . . . . . Parts Attached 110 | . 16 2 36 6 21 29 Power 7 | . 1 . 4 . 1 1 Engine 5 | . 1 . 3 . 1 . Core 2 | . . . 1 . . 1 Reactor . | . . . . . . . Propulsion 28 | . 8 . 8 2 5 5 Treads 20 | . 2 . 8 2 5 3 Leg 6 | . 6 . . . . . Wheel . | . . . . . . . Hover . | . . . . . . . Flight 2 | . . . . . . 2 Utility 24 | . 4 . 10 3 2 5 Device 7 | . 2 . 3 . 1 1 Storage 2 | . 1 . . . . 1 Processor 5 | . . . 4 . . 1 Hackware 2 | . . . 1 . . 1 Protection 8 | . 1 . 2 3 1 1 Artifact . | . . . . . . . Weapon 51 | . 3 2 14 1 13 18 Energy Gun 3 | . 2 . . . . 1 Energy Cannon . | . . . . . . . Ballistic Gun 23 | . 1 1 10 1 7 3 Ballistic Cannon 9 | . . 1 . . 2 6 Launcher 16 | . . . 4 . 4 8 Special Weapon . | . . . . . . . Impact Weapon . | . . . . . . . Slashing Weapon . | . . . . . . . Piercing Weapon . | . . . . . . . Special Melee Weapon . | . . . . . . . Unidentified Prototypes 5 | . . . 1 . 1 3 Parts Lost 45 | . 2 . 11 . 10 22 Power 6 | . . . 3 . 1 2 Propulsion 10 | . . . 2 . 2 6 Utility 15 | . 1 . 3 . 5 6 Weapon 14 | . 1 . 3 . 2 8 Highest Loss Streak 13 | . 1 . 5 . 7 13 To Critical Strikes . | . . . . . . . Average Slot Usage (%) 93 | . 97 100 96 98 83 68 Engine 10 | . 14 14 7 7 6 3 Treads 14 | . 10 28 17 14 14 11 Leg 6 | . 17 . . . . . Device 8 | . 7 . 8 7 11 12 Storage 10 | . 14 14 9 7 7 7 Processor 11 | . . . 22 23 17 14 Protection 7 | . 3 14 10 23 8 . Energy Gun 7 | . 18 4 . . . . Ballistic Gun 11 | . 9 10 15 14 9 . Ballistic Cannon 2 | . . 12 2 . 4 10 Naked Turns 1 | . . . . . . 1 Heaviest Build 52 | 14 34 35 43 46 52 52 Greatest Support 52 | 20 40 40 40 40 40 52 Greatest Overweight (x) 2 | . 1 . 1 2 2 1 Average Overweight (x) . | . . . . 1 1 . Largest Inventory Capacity 15 | . 15 15 15 15 15 15 Average Capacity 14 | . 14 15 15 15 15 14 Most Carried 15 | . 15 15 15 14 15 15 Average Carried 14 | . 13 15 14 13 12 13 Final Capacity 15 | 8 15 15 15 15 15 5 Final Carried 15 | 6 15 15 15 13 15 4 Class Distribution -------------------- 49% | Mutant 38% | Scavenger-Mutant 11% | Scavenger-Skirmisher Dominant Class ---------------- Mutant | -10/Materials Mutant | -10/Subcaves Scavenger-Mutant | -8/Materials Scavenger-Mutant | -7/Factory Scavenger-Skirmisher | -7/DSF Scavenger-Skirmisher | -6/Factory Resources | -11 -10 -10 -8 -7 -7 -6 ----------- Run | Yrd Mat Sub Mat Fac DSF Fac Matter Collected 3648 | 152 610 87 1457 . 842 500 Remotely 81 | . 81 . . . . . Salvage Created 3588 | . 551 20 1728 . 617 672 Parts 215 | . 43 2 112 . 27 31 Haulers Intercepted 1 | . . . 1 . . . Recyclers Shooed 2 | . 1 . . . . 1 Parts Field Recycled . | . . . . . . . Retrieved Matter . | . . . . . . . Parts Self-Destructed 9 | . . 9 . . . . Prevented . | . . . . . . . Kills | -11 -10 -10 -8 -7 -7 -6 ------- Run | Yrd Mat Sub Mat Fac DSF Fac Combat Hostiles Destroyed 77 | . 15 2 35 . 9 16 Guns 52 | . 15 2 29 . 6 . Cannons 11 | . . . 1 . . 10 AOE 14 | . . . 5 . 3 6 Classes Destroyed 15 | . 5 1 6 . . 3 Worker 5 | . . . 2 . . 3 Builder 1 | . . . . . . 1 Hauler 1 | . . . 1 . . . Recycler 2 | . 1 . 1 . . . Operator 2 | . 1 . 1 . . . Watcher 3 | . 1 . 2 . . . Swarmer 14 | . 6 1 7 . . . Grunt 41 | . 9 . 16 . 5 11 Brawler 1 | . . . . . . 1 Duelist 2 | . . . 1 . 1 . Sentry 10 | . . . 8 . . 2 Specialist 4 | . . . 2 . 2 . Hunter 2 | . . . . . . 2 Heavy 2 | . . . 1 . 1 . Subdweller 1 | . . 1 . . . . Best Kill Streak 9 | . 3 1 9 . 6 9 Combat Bots Only 7 | . 3 1 6 . 6 7 Max Kills in Single Turn 4 | . 2 1 4 . 2 3 Gunslinging 1 | . 1 . . . . . Exploded 3 | . . . 3 . 1 2 Melee . | . . . . . . . Uniques/NPCs Destroyed . | . . . . . . . Combat | -11 -10 -10 -8 -7 -7 -6 -------- Run | Yrd Mat Sub Mat Fac DSF Fac Hostile Shots Fired 675 | . 78 21 153 . 77 346 Missed 207 | . 17 6 43 . 24 117 Damage Taken 7459 | . 659 272 1986 . 1313 3229 Core 1470 | . 128 45 293 . 139 865 Absorbed by Shields 25 | . . . . . . 25 Redirected to Shielding 54 | . . . 46 . 8 . Core Remaining (%) 64 | 100 . 30 46 . 80 . Volleys Fired 246 | . 45 14 105 . 32 50 Largest 2 | . 2 2 2 . 2 2 Hottest 115 | . 115 69 69 . 69 96 Shots Fired 471 | . 90 28 204 . 64 85 Gun 355 | . 90 14 192 . 52 7 Cannon 84 | . . 14 8 . . 62 Launcher 32 | . . . 4 . 12 16 Special . | . . . . . . . Kinetic 381 | . 33 28 200 . 52 68 Thermal 58 | . 57 . . . . 1 Explosive 17 | . . . 2 . 7 8 Electromagnetic 15 | . . . 2 . 5 8 Robot Hit Streak 23 | . 11 12 23 . 6 6 Robot Miss Streak 5 | . 2 3 5 . 3 4 Penetration Max 1 | . . . 1 . 1 1 Secondary Targets 4 | . 2 . 2 . . . Max Gunslinging Chain 1 | . 1 . 1 . . . Shots Hit Robots 277 | . 58 16 123 . 35 45 Core Hits 180 | . 27 3 71 . 29 50 Critical Kills 1 | . . . 1 . . . Critical Parts Destroyed 3 | . . . 2 . . 1 Critical Strikes 18 | . 4 1 3 . . 10 Burn 4 | . 4 . . . . . Destroy 4 | . . . 3 . . 1 Blast 10 | . . 1 . . . 9 Melee Attacks . | . . . . . . . Impact . | . . . . . . . Slashing . | . . . . . . . Piercing . | . . . . . . . Sneak Attacks . | . . . . . . . Combat Hostiles . | . . . . . . . Follow-up Attacks . | . . . . . . . Damage Inflicted 7757 | . 779 327 3373 . 1150 2128 Guns 3945 | . 779 185 2512 . 404 65 Cannons 1184 | . . 142 122 . . 920 Explosions 2628 | . . . 739 . 746 1143 Melee . | . . . . . . . Ramming . | . . . . . . . Kinetic 4610 | . 260 327 2634 . 404 985 Thermal 709 | . 519 . . . . 190 Explosive 1779 | . . . 661 . 534 584 Electromagnetic 659 | . . . 78 . 212 369 Impact . | . . . . . . . Slashing . | . . . . . . . Piercing . | . . . . . . . Highest Corruption 1 | . 1 1 1 . . 1 Average Corruption 1 | . 1 1 1 . . 1 Corruption Purged . | . . . . . . . Corruption Blocked . | . . . . . . . Effects 10 | . 1 2 7 . . . Message Errors 1 | . . . 1 . . . Matter Fused 2 | . . 2 . . . . Heat Flow Errors 1 | . 1 . . . . . Energy Discharges 3 | . . . 3 . . . Data Loss (minor) 2 | . . . 2 . . . Alerts 1 | . . . 1 . . . Overload Shots . | . . . . . . . Overflow Damage 4 | . . . . . . 4 Projectiles 4 | . . . . . . 4 Explosions . | . . . . . . . Melee . | . . . . . . . Knockbacks 8 | . . 1 1 . . 6 Impact . | . . . . . . . Kinetic 7 | . . 1 1 . . 5 Secondary 1 | . . . . . . 1 Self-Inflicted Damage 79 | . . . . . 30 49 Shots 2 | . . . . . 1 1 Rammed . | . . . . . . . Targets Rammed . | . . . . . . . Kicked . | . . . . . . . Crushed . | . . . . . . . Highest Temperature 514 | . 234 . 62 . 514 208 Average Temperature 60 | . 71 . 14 . 158 87 Received Heat Transfer 1742 | . 327 57 531 . 144 683 Siege Activations . | . . . . . . . Robots Corrupted . | . . . . . . . Combat Hostiles . | . . . . . . . Parts Fried 1 | . . . . . . 1 Impact Corruptions . | . . . . . . . Robots Melted . | . . . . . . . Combat Hostiles . | . . . . . . . Parts Melted 7 | . 6 1 . . . . Heat Transferred 1989 | . 1739 . . . . 250 Parts Sabotaged . | . . . . . . . Parts Stolen . | . . . . . . . Parts Stripped . | . . . . . . . Power Chain Reactions 3 | . . . . . . 3 Alert | -11 -10 -10 -8 -7 -7 -6 ------- Run | Yrd Mat Sub Mat Fac DSF Fac Peak Influence 688 | . 223 . 688 312 377 687 Initial 312 | . . . 10 312 221 197 Average 172 | . 69 . 196 312 312 350 Maximum Alert Level 2 | . 1 . 2 1 1 2 Low Security (%) 62 | . 90 . 55 . 4 48 Level 1 30 | . 9 . 37 100 95 9 Level 2 7 | . . . 7 . . 42 Level 3 . | . . . . . . . Level 4 . | . . . . . . . Level 5 . | . . . . . . . High Security . | . . . . . . . Max Security . | . . . . . . . Sterilizations 1 | . . . . . 1 . Squads Dispatched 17 | . 3 . 5 . 2 7 Investigation 4 | . 3 . . . . 1 Extermination . | . . . . . . . Reinforcement 10 | . . . 5 . 2 3 Assault 1 | . . . . . . 1 Garrison 2 | . . . . . . 2 Intercept . | . . . . . . . Searches Triggered . | . . . . . . . Construction Impeded 1 | . . . . . . 1 Haulers Reinforced 1 | . . . . . . 1 Active Scanning Responses 1 | . . . . . . 1 Cargo Convoy Interrupts . | . . . . . . . Stealth | -11 -10 -10 -8 -7 -7 -6 --------- Run | Yrd Mat Sub Mat Fac DSF Fac Distress Signals 8 | . 2 . 5 . . 1 Communications Jammed . | . . . . . . . Distress Signals . | . . . . . . . Times Spotted 115 | . 27 6 44 . 9 29 Peak Tracking Total 7 | . 4 4 7 . 4 7 Tactical Retreats 6 | . 1 1 3 . . 1 Traps | -11 -10 -10 -8 -7 -7 -6 ------- Run | Yrd Mat Sub Mat Fac DSF Fac Traps Triggered 7 | . 2 . 1 2 . 2 Indirectly 2 | . . . . . . 2 Trap Hack Attempts . | . . . . . . . Triggered . | . . . . . . . Disarmed . | . . . . . . . Reprogrammed . | . . . . . . . Reused . | . . . . . . . Traps Extracted . | . . . . . . . Installed . | . . . . . . . Triggered . | . . . . . . . Machines | -11 -10 -10 -8 -7 -7 -6 ---------- Run | Yrd Mat Sub Mat Fac DSF Fac Machines Disabled 7 | . . . 4 . . 3 Max in Single Turn 2 | . . . 2 . . 2 Machines Repaired . | . . . . . . . Machines Dismantled . | . . . . . . . Machines Sabotaged . | . . . . . . . Overloaded Fab Kills . | . . . . . . . Hacking | -11 -10 -10 -8 -7 -7 -6 --------- Run | Yrd Mat Sub Mat Fac DSF Fac Machines Accessed 10 | . 5 . 4 1 . . Terminals 10 | . 5 . 4 1 . . Fabricators . | . . . . . . . Repair Stations . | . . . . . . . Recycling Units . | . . . . . . . Scanalyzers . | . . . . . . . Garrison Access . | . . . . . . . Total Hacks 32 | . 17 . 12 3 . . Successful 14 | . 8 . 5 1 . . Failed 18 | . 9 . 7 2 . . Catastrophic 2 | . 1 . 1 . . . Database Lockouts . | . . . . . . . Manual 16 | . 6 . 10 . . . Terminals 32 | . 17 . 12 3 . . Fabricators . | . . . . . . . Repair Stations . | . . . . . . . Recycling Units . | . . . . . . . Scanalyzers . | . . . . . . . Garrison Access . | . . . . . . . Terminal Hacks 10 | . 5 . 4 1 . . Robot Analysis 1 | . . . 1 . . . Open DSF 1 | . . . . 1 . . Branch Access Points 1 | . . . 1 . . . Hauler Manifests 1 | . 1 . . . . . Registered Components 1 | . 1 . . . . . Zone Layout 5 | . 3 . 2 . . . Fabricator Hacks . | . . . . . . . Repair Station Hacks . | . . . . . . . Recycling Unit Hacks . | . . . . . . . Scanalyzer . | . . . . . . . Garrison Access Hacks . | . . . . . . . Unauthorized Hacks 4 | . 3 . 1 . . . Terminals 4 | . 3 . 1 . . . Botnet 4 | . 3 . 1 . . . Fabricators . | . . . . . . . Repair Stations . | . . . . . . . Recycling Units . | . . . . . . . Scanalyzers . | . . . . . . . Garrison Access . | . . . . . . . Data Cores Recovered 1 | . 1 . . . . . Used . | . . . . . . . Hacking Detections 6 | . 3 . 3 . . . Full Trace Events 3 | . 2 . 1 . . . Feedback Events . | . . . . . . . Feedback Blocked . | . . . . . . . Robot Schematics Acquired . | . . . . . . . Robots Built . | . . . . . . . Authchips . | . . . . . . . Time . | . . . . . . . Total Robot Build Rating . | . . . . . . . Part Schematics Acquired . | . . . . . . . Parts Built . | . . . . . . . Authchips . | . . . . . . . Time . | . . . . . . . Total Part Build Rating . | . . . . . . . Parts Repaired . | . . . . . . . Time . | . . . . . . . Parts Recycled . | . . . . . . . Recycled Matter . | . . . . . . . Retrieved Matter . | . . . . . . . Retrieved Components . | . . . . . . . Parts Scanalyzed . | . . . . . . . Part Schematics Acquired . | . . . . . . . Parts Damaged . | . . . . . . . Bothacking | -11 -10 -10 -8 -7 -7 -6 ------------ Run | Yrd Mat Sub Mat Fac DSF Fac Used RIF Installer . | . . . . . . . Robots Hacked . | . . . . . . . Non-combat . | . . . . . . . Combat . | . . . . . . . Robot Hacks Applied . | . . . . . . . Relay Couplers Released . | . . . . . . . Fabnet Peak Effective % . | . . . . . . . Robots Rewired . | . . . . . . . Allies Hacked . | . . . . . . . Hacks Repelled . | . . . . . . . Allies | -11 -10 -10 -8 -7 -7 -6 -------- Run | Yrd Mat Sub Mat Fac DSF Fac Total Allies . | . . . . . . . Largest Group . | . . . . . . . Highest-Rated Group . | . . . . . . . Highest-Rated Ally . | . . . . . . . Total Orders . | . . . . . . . Ally Attacks . | . . . . . . . Total Damage . | . . . . . . . Kills . | . . . . . . . Allies Corrupted . | . . . . . . . Allies Melted . | . . . . . . . Intel | -11 -10 -10 -8 -7 -7 -6 ------- Run | Yrd Mat Sub Mat Fac DSF Fac Robot Analysis Total 1 | . . . 1 . . . Derelict Logs Recovered 1 | . . 1 . . . . Drone Launches . | . . . . . . . Drone Recoveries . | . . . . . . . Exploration | -11 -10 -10 -8 -7 -7 -6 ------------- Run | Yrd Mat Sub Mat Fac DSF Fac Turns Passed 5148 | . 1917 339 1921 130 391 450 Spaces Moved 2064 | 1 889 158 721 51 110 134 Core 2 | . . . . . . 2 Treads 1593 | . 431 158 721 51 110 122 Legs 459 | 1 458 . . . . . Wheels . | . . . . . . . Hover . | . . . . . . . Flight 10 | . . . . . . 10 Fastest Speed 37 | 120 120 160 160 240 240 37 Average Speed 181 | 120 174 160 174 243 247 213 Slowest Speed 320 | 120 190 160 250 320 320 250 Overloaded Moves . | . . . . . . . Propulsion Burnouts . | . . . . . . . Robots Hopped . | . . . . . . . Cave-ins Triggered . | . . . . . . . Exploration Rate (%) 35 | 2 97 14 49 2 77 8 Regions Visited 6 Branch Regions 1 Pre-discovered Areas . | . . . . . . . Known Exits Taken 1 | . . . . 1 . . Unknown Exits Taken 4 | 1 1 1 1 . . . Scrap Searched 1 | . . 1 . . . . Spaces Dug . | . . . . . . . Terrain Destroyed 117 | . . . 35 . 29 53 Melee . | . . . . . . . Projectile 20 | . . . 5 . 1 14 AOE 95 | . . . 29 . 27 39 Terrain Rammed . | . . . . . . . Walls Destroyed . | . . . . . . . Machines Disabled . | . . . . . . . Actions | -11 -10 -10 -8 -7 -7 -6 --------- Run | Yrd Mat Sub Mat Fac DSF Fac Total 3068 | . 1171 217 1225 56 175 224 Wait 564 | . 180 41 333 . 3 7 Move 2058 | . 888 157 720 50 109 134 Hop . | . . . . . . . Pick Up 39 | . 20 . 13 . 5 1 Fast Attach 41 | . 7 2 16 4 5 7 Attach 31 | . 2 . 7 2 6 14 Detach 6 | . . 1 1 . 2 2 Swap 38 | . 7 . 13 . 10 8 Drop 45 | . 22 2 17 . 3 1 Fire 246 | . 45 14 105 . 32 50 Melee . | . . . . . . . Ram . | . . . . . . . Kick . | . . . . . . . Crush . | . . . . . . . Escape Stasis . | . . . . . . . Rewire . | . . . . . . . Trap . | . . . . . . . Miscellaneous . | . . . . . . . Route ------- -11/Scrapyard -10/Materials (discovered 5 exits: [*Mat x3] / [*Min] / [*Sub]) -10/Subcaves -8/Materials -7/Factory -7/DSF -6/Factory History --------- Turn | Location | Event 1 | -11/Scrapyard | Discovered new exit (range 0) 1 | -11/Scrapyard | Entered Materials 304 | -10/Materials | Build established: Mutant 400 | -10/Materials | Discovered new exit (range 5) 537 | -10/Materials | Discovered new exit (range 14) 689 | -10/Materials | Discovered new exit (range 14) 978 | -10/Materials | Core integrity fell below 50% 1013 | -10/Materials | Discovered new exit (range 3) 1210 | -10/Materials | Discovered new exit (range 5) 1918 | -10/Materials | Entered Subcaves 1925 | -10/Subcaves | Learned Materials emergency access door positions 1976 | -10/Subcaves | Shifting Twisted Machinery released Flamer 2006 | -10/Subcaves | Shifting Twisted Machinery released Sub. Machine Gun 2073 | -10/Subcaves | Discovered new exit (range 4) 2257 | -10/Subcaves | Entered Materials 2257 | -8/Materials | Evolved 4 slots: Utility x4 2758 | -8/Materials | Lost 5 parts (1p1n1u2w) 3016 | -8/Materials | Build established: Scavenger-Mutant 4025 | -8/Materials | Core integrity fell below 50% 4025 | -8/Materials | Discovered new exit (range 16) 4178 | -8/Materials | Entered Factory 4178 | -7/Factory | Evolved 2 slots: Utility x2 4308 | -7/Factory | Identified exit to DSF 4308 | -7/Factory | Entered DSF 4365 | -7/DSF | Additional patrols routed to DSF 4464 | -7/DSF | Found Prototype Device 4464 | -7/DSF | Identified Active Sensor Suite 4475 | -7/DSF | Lost 7 parts (1p2n4u) 4534 | -7/DSF | Lost 3 parts (1u2w) 4583 | -7/DSF | Sterilization system engaged 4603 | -7/DSF | Ambient heat levels rising (+10) 4608 | -7/DSF | Discovered new exit (range 16) 4618 | -7/DSF | Ambient heat levels rising (+10) 4633 | -7/DSF | Ambient heat levels rising (+10) 4648 | -7/DSF | Ambient heat levels rising (+10) 4663 | -7/DSF | Ambient heat levels rising (+10) 4678 | -7/DSF | Ambient heat levels rising (+10) 4682 | -7/DSF | Identified exit to Factory 4693 | -7/DSF | Ambient heat levels rising (+10) 4699 | -7/DSF | Entered Factory 4699 | -6/Factory | Evolved 2 slots: Utility x2 4701 | -6/Factory | Build established: Scavenger-Skirmisher 4954 | -6/Factory | Garrison activated, responded to threat 5012 | -6/Factory | Destroyed 7 combat bots 5049 | -6/Factory | First assault squad dispatched 5075 | -6/Factory | Lost 9 parts (1p2n4u2w) 5101 | -6/Factory | Core integrity fell below 50% 5141 | -6/Factory | Core integrity fell below 20% 5141 | -6/Factory | Released all parts (6) 5149 | -6/Factory | Destroyed by G-67 Veteran with Field Laser Last Messages --------------- 05141_ Released Gauss Rifle. 05141_ Acquired 81 matter. 05142_ K-01 Serf collects debris. 05142_ R-10 Processor collects Lrg. Storage Unit. 05142_ Acquired Prototype Flight Unit. 05142_ Identified Biomechanical Wings. 05143_ Penetrated by Slug. 05144_ Acquired Biomechanical Wings. 05145_ K-01 Serf collects debris. 05145_ R-10 Processor collects Gauss Rifle. 05147_ K-01 Serf collects debris. 05148_ C-30 ARC bursts open, deploying its payload. 05148_ G-67 Veteran unfolds itself. 05148_ G-50 Soldier unfolds itself. 05148_ B-48 Gladiator unfolds itself. 05148_ E-15 Imp unfolds itself. 05148_ Biomechanical Wings destroyed. 05148_ K-01 Serf collects debris. Map ----- +----------------------------------------------------+ | ?????????????????????????????????????????????????? | | ?????????????????????????????????????????????????? | | ?????????????????????????????????????????????????? | | ?????????????????????????????????????????????????? | | ?????????????????????????????????????????????????? | | ?????????????????????????????????????????????????? | | ?????????????????????????????????????????????????? | | ?????????????????????????????????????????????????? | | ?????????????????????????????????????????????????? | | ?????????????????????????????????????????????????? | | ?????????????????????????????????????????????????? | | ?????????????????????????""??????????????????????? | | ???????????????????? ??? ??????????????????????? | | ???????????????????? ??? ??????????????????????? | | ??????????????#######;#+#;;??????????????????????? | | ?????????????? w ??????????????????????? | | ??????????????? ??????????????????????? | | ???????????????? ?????? ?????????????? | | ????????????????? ?????? ???????????? | | ?????????????????? ?????? ????????? | | ???????????????????#; #?????? ## # #??????? | | ????????????????????# #?????? #% ????? | | ????????????######### % ####### #%= % % !????? | | ??????????? # # %# [%=[ ! ????? | | ?????????? *[# =[= %% "?????? | | ?????????? %= @# = # ??????? | | ?????????? kk ! = # # ???????? | | ?????????? # #????????? | | ?????????? e # #?????????? | | ?????????? b # % #?????????? | | ?????????? g% g # % #?????????? | | ?????????" g # # % #?????????? | | ????????? # !% #?????????? | | ????????? " k ; =# #?????????? | | ???????????#";;;;;;;; % # ![= #?????????? | | ????????? ## # %R=]#####/ #############?? | | ??????????? ??####%[! ==%* % !! #?? | | ????????????? ??????# = [% !! #?? | | ????????????????????# * = ! ! #?? | | ????????????????????# [ ^ #?? | | ????????????????????# % /#?? | | ????????????????????## "" ^" "" """ = #?? | | ?????????????????????# """ """" """ ### | | ?????????????????????# """" """" """ | | ?????????????????????# """" """" | | ?????????????????????# | | ?????????????????????# [ = | | ?????????????????????# ### | | ????????????????????? ??####+########## | | ????????????????????? ????????????????# | +----------------------------------------------------+ Best States ------------- Heat Dissipation 50 Energy Generation 18 Energy Capacity 300 Matter Stores 363 Matter Capacity 450 Sight Range 16 Robot Scan Range 20 Terrain Scan Density 110 Additional Mass Support 12 Corruption Containment 8 Armor Coverage 375 Weapon Shielding 33 Weapon Cycling 15 Evasion (%) 45 Core Analysis 9 Armor Integrity Analysis 30 Recoil Reduction 2 Particle Charging 15 Offensive Hacking 10 Defensive Hacking 10 Item Schematics ----------------- None Robot Schematics ------------------ None Fabricated ------------ Nothing Alien Tech Used ----------------- None Achievements -------------- None Challenges ------------ None Game ------ Seed SwordRainbowDoomcannon Manual? 0 Play Time 00:34:46 Cumulative 176.2 hours Start 2024.03.22 @ 19:42:00 End 2024.03.22 @ 20:18:01 Sessions 1 Manual Loads 0 Difficulty Rogue Special Mode None Game No. 187 Rogue 187 Adventurer 0 Explorer 0 Win Type - Total 1 Types 1/0/0/0/0/0/0/0/0 Lore% 57 Gallery% 73 Achievement% 57 Wizard Run 0 Options --------- Layout 1 ASCII 0 Keyboard 0 Movement Numpad Keybinds 0 Fullscreen 1 Font 24/Smallcaps Map View 50x35 Zoom Use 0% Tactical HUD 1 Map Filters NONE Filters NONE Steam 1 RUN: b1d884d1-5c47-4c36-bf42-b43ec899f8d7